fUSD/lending_fUSD_20260608
["ID","MTS","AMOUNT","RATE_DAILY","PERIOD"]
[424415241,1780858250000,-313.86713,0.00021278,2]
[424415243,1780858250000,-313.86713,0.00021278,2]
[424415245,1780858250000,-151.0,0.00021278,2]
[424415248,1780858250000,-160.0,0.00021327,2]
[424415244,1780858250000,-313.86713,0.00021278,2]
[424415247,1780858250000,-217.15233878,0.00021327,2]
[424415250,1780858250000,-151.0,0.00021345,2]
[424415252,1780858250000,-4777.16,0.0002137,2]
[424415253,1780858250000,-152.0,0.00021445,3]
[424415226,1780858250000,-545.183073,0.00021278,2]
[424415251,1780858250000,-205.69992778,0.00021369,2]
[424415238,1780858250000,-157.050854,0.00021278,2]
[424415224,1780858250000,-662.64,0.00021273,2]
[424415202,1780858250000,-151.0,0.00021054,2]
[424415223,1780858250000,-151.0,0.00021253,2]
[424415254,1780858250000,-58487.36903202,0.000215,2]
[424415200,1780858250000,-200.0,0.00021054,2]
[424415196,1780858250000,-2236.95670847,0.00021054,2]
[424415195,1780858250000,-187.78006524,0.00021054,2]
[424415199,1780858250000,-225.18697532,0.00021054,2]
[424415198,1780858250000,-1536.04360648,0.00021054,2]
[424415201,1780858250000,-151.0,0.00021054,2]
[424415204,1780858250000,-500.0,0.00021054,2]
[424415203,1780858250000,-151.0,0.00021054,2]
[424415206,1780858250000,-211.55422695,0.00021089,2]
[424415205,1780858250000,-500.0,0.00021073,2]
[424415210,1780858250000,-1656.0,0.00021207,2]
[424415207,1780858250000,-151.0,0.000212,2]
[424415212,1780858250000,-750.0,0.00021242,2]
[424415208,1780858250000,-151.0,0.000212,2]
[424415213,1780858250000,-750.0,0.00021242,2]
[424415209,1780858250000,-588.9,0.00021205,2]
[424415211,1780858250000,-750.0,0.00021242,2]
[424415214,1780858250000,-750.0,0.00021242,2]
[424415215,1780858250000,-750.0,0.00021242,2]
[424415225,1780858250000,-290.076892,0.00021278,2]
[424415216,1780858250000,-750.0,0.00021242,2]
[424415217,1780858250000,-750.0,0.00021242,2]
[424415218,1780858250000,-750.0,0.00021242,2]
[424415222,1780858250000,-450.0,0.00021253,7]
[424415221,1780858250000,-1200.0,0.00021253,2]
[424415219,1780858250000,-750.0,0.00021242,2]
[424415220,1780858250000,-253.0,0.00021242,2]
[424415261,1780858250000,-3554.0,0.00021538,2]
[424415197,1780858250000,-225.18697532,0.00021054,2]
[424415255,1780858250000,-225.75132023,0.000215,2]
[424415291,1780858250000,-150.0,0.00021729,2]
[424415289,1780858250000,-150.0,0.00021729,2]
[424415299,1780858250000,-2000.0,0.00021902,2]
[424415288,1780858250000,-150.0,0.00021729,2]
[424415292,1780858250000,-150.0,0.00021729,2]
[424415296,1780858250000,-1752.63,0.000218,2]
[424415293,1780858250000,-289.0,0.00021729,2]
[424415294,1780858250000,-708.74732257,0.00021738,7]
[424415298,1780858250000,-160.0,0.00021815,2]
[424415297,1780858250000,-152.0,0.00021802,4]
[424415295,1780858250000,-2335.0,0.00021793,2]
[424415300,1780858250000,-500.0,0.00021902,2]
[424415302,1780858250000,-1007.73,0.00021918,2]
[424415303,1780858250000,-5000.0,0.00021918,2]
[424415312,1780858250000,-5091.1,0.00022,10]
[424415306,1780858250000,-220.09,0.00021918,2]
[424415311,1780858250000,-502.92334437,0.00021999,2]
[424415304,1780858250000,-151.0,0.00021918,2]
[424415301,1780858250000,-151.0,0.00021918,2]
[424415305,1780858250000,-151.0,0.00021918,2]
[424415309,1780858250000,-200.0,0.00021918,2]
[424415307,1780858250000,-250.0,0.00021918,2]
[424415308,1780858250000,-200.0,0.00021918,2]
[424415310,1780858250000,-930.92336407,0.00021943,2]
[424415314,1780858250000,-160.0,0.00022,2]
[424415313,1780858250000,-5683.64262,0.00022,2]
[424415316,1780858250000,-450.0,0.00022,2]
[424415290,1780858250000,-150.0,0.00021729,2]
[424415284,1780858250000,-1656.0,0.00021618,2]
[424415315,1780858250000,-300.0,0.00022,2]
[424415283,1780858250000,-500.0,0.00021602,2]
[424415287,1780858250000,-162.0,0.00021723,2]
[424415256,1780858250000,-151.0,0.000215,2]
[424415259,1780858250000,-151.0,0.000215,2]
[424415258,1780858250000,-281.709686,0.000215,2]
[424415257,1780858250000,-151.0,0.000215,2]
[424415260,1780858250000,-1358.0,0.00021538,2]
[424415264,1780858250000,-1227.0,0.00021538,2]
[424415274,1780858250000,-194.72792766,0.00021602,2]
[424415266,1780858250000,-419.0,0.00021538,2]
[424415263,1780858250000,-1274.0,0.00021538,2]
[424415270,1780858250000,-350.0,0.00021563,3]
[424415269,1780858250000,-500.0,0.0002155,2]
[424415265,1780858250000,-6073.0,0.00021538,2]
[424415271,1780858250000,-500.0,0.00021602,2]
[424415262,1780858250000,-382.0,0.00021538,2]
[424415268,1780858250000,-500.0,0.00021544,14]
[424415267,1780858250000,-151.0,0.00021538,2]
[424415282,1780858250000,-1592.87721992,0.00021602,2]
[424415285,1780858250000,-2388.85,0.00021684,2]
[424415281,1780858250000,-151.0,0.00021602,2]
[424415286,1780858250000,-246.8159648,0.0002169,2]
[424415279,1780858250000,-233.5188934,0.00021602,2]
[424415278,1780858250000,-200.0,0.00021602,2]
[424415277,1780858250000,-151.0,0.00021602,2]
[424415276,1780858250000,-233.5188934,0.00021602,2]
[424415275,1780858250000,-2319.72410669,0.00021602,2]
[424415272,1780858250000,-200.0,0.00021602,2]
[424415273,1780858250000,-233.5188934,0.00021602,2]
[424415280,1780858250000,-151.0,0.00021602,2]
[424415358,1780858251000,-151.0,0.0002215,2]
[424415353,1780858251000,-2405.55389863,0.0002215,2]
[424415352,1780858251000,-201.93286098,0.0002215,2]
[424415356,1780858251000,-200.0,0.0002215,2]
[424415347,1780858251000,-150.0,0.0002215,2]
[424415359,1780858251000,-151.0,0.0002215,2]
[424415355,1780858251000,-151.0,0.0002215,2]
[424415350,1780858251000,-200.0,0.0002215,2]
[424415361,1780858251000,-500.0,0.0002215,2]
[424415357,1780858251000,-242.15909246,0.0002215,2]
[424415351,1780858251000,-242.15909246,0.0002215,2]
[424415354,1780858251000,-242.15909246,0.0002215,2]
[424415362,1780858251000,-151.0,0.00022157,2]
[424415364,1780858251000,-308.24,0.000222,2]
[424415373,1780858251000,-748.95,0.00022466,2]
[424415365,1780858251000,-8813.77996503,0.00022291,2]
[424415367,1780858251000,-890.0,0.00022397,2]
[424415341,1780858251000,-285.47629693,0.0002211,2]
[424415369,1780858251000,-827.92,0.00022466,2]
[424415372,1780858251000,-838.45,0.00022466,2]
[424415374,1780858251000,-252.44537637,0.00022466,2]
[424415371,1780858251000,-307.56,0.00022466,2]
[424415366,1780858251000,-1175.4,0.00022353,2]
[424415363,1780858251000,-152.0,0.00022158,5]
[424415370,1780858251000,-1415.86,0.00022466,2]
[424415368,1780858251000,-1656.0,0.0002244,2]
[424415360,1780858251000,-1651.81367706,0.0002215,2]
[424415342,1780858251000,-212.0,0.00022135,2]
[424415340,1780858251000,-244.35529445,0.0002211,2]
[424415344,1780858251000,-150.0,0.0002215,2]
[424415386,1780858251000,-225.18697532,0.00022696,2]
[424415324,1780858251000,-1257.0,0.00022,2]
[424415322,1780858251000,-646.0,0.00022,2]
[424415318,1780858251000,-929.0,0.00022,2]
[424415320,1780858251000,-2308.0,0.00022,2]
[424415323,1780858251000,-683.0,0.00022,2]
[424415321,1780858251000,-711.0,0.00022,2]
[424415317,1780858251000,-571.0,0.00022,2]
[424415319,1780858251000,-834.0,0.00022,2]
[424415325,1780858251000,-962.0,0.00022,2]
[424415326,1780858251000,-983.0,0.00022,2]
[424415336,1780858251000,-151.0,0.00022022,2]
[424415328,1780858251000,-956.0,0.00022,2]
[424415333,1780858251000,-2000.0,0.00022,7]
[424415327,1780858251000,-2914.0,0.00022,2]
[424415331,1780858251000,-3113.43,0.00022,2]
[424415335,1780858251000,-151.0,0.00022022,2]
[424415332,1780858251000,-172.0,0.00022,2]
[424415330,1780858251000,-483.0,0.00022,2]
[424415334,1780858251000,-693.21,0.00022019,2]
[424415338,1780858251000,-500.0,0.00022027,2]
[424415348,1780858251000,-255.0,0.0002215,2]
[424415337,1780858251000,-151.0,0.00022022,2]
[424415339,1780858251000,-1656.0,0.00022029,2]
[424415345,1780858251000,-150.0,0.0002215,2]
[424415349,1780858251000,-500.0,0.0002215,2]
[424415343,1780858251000,-150.0,0.0002215,2]
[424415346,1780858251000,-150.0,0.0002215,2]
[424415329,1780858251000,-1524.0,0.00022,2]
[424415376,1780858251000,-204.4708924,0.00022475,2]
[424415380,1780858251000,-162.0,0.00022545,2]
[424415413,1780858251000,-151.0,0.00022844,2]
[424415409,1780858251000,-200.0,0.00022776,2]
[424415412,1780858251000,-220.0,0.00022833,2]
[424415410,1780858251000,-200.0,0.00022776,2]
[424415415,1780858251000,-151.0,0.00022848,2]
[424415414,1780858251000,-151.0,0.00022848,2]
[424415425,1780858251000,-929.0,0.00023,2]
[424415416,1780858251000,-151.0,0.00022848,2]
[424415417,1780858251000,-152.0,0.0002287,7]
[424415419,1780858251000,-500.0,0.00022982,2]
[424415424,1780858251000,-571.0,0.00023,2]
[424415422,1780858251000,-5683.64262,0.00023,2]
[424415420,1780858251000,-151.0,0.00023,20]
[424415421,1780858251000,-244.13,0.00023,5]
[424415418,1780858251000,-151.0,0.00022979,2]
[424415426,1780858251000,-834.0,0.00023,2]
[424415427,1780858251000,-2308.0,0.00023,2]
[424415431,1780858251000,-1257.0,0.00023,2]
[424415430,1780858251000,-683.0,0.00023,2]
[424415429,1780858251000,-646.0,0.00023,2]
[424415432,1780858251000,-962.0,0.00023,2]
[424415428,1780858251000,-711.0,0.00023,2]
[424415433,1780858251000,-983.0,0.00023,2]
[424415436,1780858251000,-1524.0,0.00023,2]
[424415434,1780858251000,-2914.0,0.00023,2]
[424415435,1780858251000,-956.0,0.00023,2]
[424415379,1780858251000,-152.0,0.00022514,6]
[424415408,1780858251000,-200.0,0.00022776,2]
[424415411,1780858251000,-260.0,0.00022776,2]
[424415423,1780858251000,-2388.04086131,0.00023,2]
[424415403,1780858251000,-200.0,0.00022776,2]
[424415378,1780858251000,-500.0,0.00022504,2]
[424415406,1780858251000,-200.0,0.00022776,2]
[424415375,1780858251000,-250.0,0.00022466,2]
[424415387,1780858251000,-160.0,0.00022696,2]
[424415377,1780858251000,-36113.06552716,0.000225,2]
[424415384,1780858251000,-662.64,0.00022691,2]
[424415383,1780858251000,-200.0,0.00022636,2]
[424415382,1780858251000,-168.3,0.00022603,2]
[424415381,1780858251000,-3667.96507188,0.000226,2]
[424415388,1780858251000,-599.60298507,0.00022697,2]
[424415390,1780858251000,-200.0,0.00022698,2]
[424415392,1780858251000,-209.40437684,0.00022698,2]
[424415391,1780858251000,-251.11897888,0.00022698,2]
[424415393,1780858251000,-251.11897888,0.00022698,2]
[424415385,1780858251000,-162.380719,0.00022696,2]
[424415407,1780858251000,-200.0,0.00022776,2]
[424415405,1780858251000,-200.0,0.00022776,2]
[424415389,1780858251000,-500.0,0.00022698,2]
[424415404,1780858251000,-200.0,0.00022776,2]
[424415402,1780858251000,-532.42513374,0.0002271,2]
[424415401,1780858251000,-500.0,0.00022698,2]
[424415398,1780858251000,-151.0,0.00022698,2]
[424415400,1780858251000,-1712.93078311,0.00022698,2]
[424415399,1780858251000,-151.0,0.00022698,2]
[424415397,1780858251000,-251.11897888,0.00022698,2]
[424415395,1780858251000,-151.0,0.00022698,2]
[424415394,1780858251000,-2494.55939288,0.00022698,2]
[424415396,1780858251000,-200.0,0.00022698,2]
[424415474,1780858252000,-531.81561148,0.00023593,2]
[424415476,1780858252000,-151.0,0.00023665,2]
[424415479,1780858252000,-151.0,0.00023671,2]
[424415475,1780858252000,-531.81561148,0.00023661,7]
[424415473,1780858252000,-152.0,0.00023582,9]
[424415498,1780858252000,-235.16,0.00023671,2]
[424415483,1780858252000,-151.0,0.00023671,2]
[424415481,1780858252000,-151.0,0.00023671,2]
[424415482,1780858252000,-151.0,0.00023671,2]
[424415472,1780858252000,-250.0,0.00023562,2]
[424415480,1780858252000,-151.0,0.00023671,2]
[424415471,1780858252000,-170.62403757,0.00023562,2]
[424415477,1780858252000,-181.5,0.00023671,2]
[424415493,1780858252000,-151.0,0.00023671,2]
[424415486,1780858252000,-151.0,0.00023671,2]
[424415487,1780858252000,-151.0,0.00023671,2]
[424415485,1780858252000,-151.0,0.00023671,2]
[424415484,1780858252000,-151.0,0.00023671,2]
[424415494,1780858252000,-151.0,0.00023671,2]
[424415495,1780858252000,-151.0,0.00023671,2]
[424415496,1780858252000,-169.0,0.00023671,2]
[424415491,1780858252000,-151.0,0.00023671,2]
[424415489,1780858252000,-151.0,0.00023671,2]
[424415488,1780858252000,-151.0,0.00023671,2]
[424415490,1780858252000,-151.0,0.00023671,2]
[424415492,1780858252000,-151.84,0.00023671,2]
[424415467,1780858252000,-531.81561148,0.00023457,2]
[424415478,1780858252000,-151.0,0.00023671,2]
[424415470,1780858252000,-531.81561148,0.00023525,2]
[424415438,1780858252000,-215.83393831,0.00023,7]
[424415465,1780858252000,-200.0,0.00023407,2]
[424415437,1780858252000,-483.0,0.00023,2]
[424415442,1780858252000,-176.52744726,0.00023193,2]
[424415444,1780858252000,-890.0,0.00023219,2]
[424415445,1780858252000,-152.0,0.00023226,8]
[424415441,1780858252000,-1752.63,0.000231,7]
[424415446,1780858252000,-500.0,0.00023246,2]
[424415439,1780858252000,-172.0,0.00023014,7]
[424415443,1780858252000,-336.21463614,0.000232,2]
[424415447,1780858252000,-200.0,0.00023246,2]
[424415440,1780858252000,-250.0,0.00023014,2]
[424415449,1780858252000,-217.15233878,0.00023246,2]
[424415448,1780858252000,-260.4103811,0.00023246,2]
[424415451,1780858252000,-260.4103811,0.00023246,2]
[424415468,1780858252000,-500.0,0.00023459,2]
[424415456,1780858252000,-151.0,0.00023246,2]
[424415455,1780858252000,-151.0,0.00023246,2]
[424415458,1780858252000,-500.0,0.00023246,2]
[424415457,1780858252000,-1776.30922209,0.00023246,2]
[424415450,1780858252000,-2586.85809042,0.00023246,2]
[424415454,1780858252000,-260.4103811,0.00023246,2]
[424415453,1780858252000,-200.0,0.00023246,2]
[424415459,1780858252000,-245.71562261,0.00023334,2]
[424415461,1780858252000,-1200.0,0.00023356,7]
[424415460,1780858252000,-600.0,0.00023356,7]
[424415463,1780858252000,-2388.85,0.00023368,7]
[424415462,1780858252000,-162.0,0.00023367,2]
[424415469,1780858252000,-1174.42188195,0.000235,2]
[424415466,1780858252000,-203.14025216,0.00023445,2]
[424415452,1780858252000,-151.0,0.00023246,2]
[424415508,1780858252000,-1130.82401238,0.0002375,2]
[424415464,1780858252000,-531.81561148,0.00023389,2]
[424415509,1780858252000,-150.0,0.0002375,2]
[424415532,1780858252000,-186.01897328,0.00023842,2]
[424415530,1780858252000,-151.0,0.00023801,2]
[424415534,1780858252000,-531.81561148,0.00023842,2]
[424415539,1780858252000,-152.0,0.00023938,10]
[424415537,1780858252000,-531.81561148,0.00023932,7]
[424415538,1780858252000,-500.0,0.00023936,2]
[424415541,1780858252000,-244.12,0.00024,5]
[424415542,1780858252000,-5683.64262,0.00024,2]
[424415540,1780858252000,-151.0,0.00023997,7]
[424415544,1780858252000,-1040.33598583,0.00024,2]
[424415543,1780858252000,-225.31021926,0.00024,2]
[424415546,1780858252000,-1257.94121467,0.00024,2]
[424415547,1780858252000,-500.0,0.00024,2]
[424415531,1780858252000,-211.89059766,0.00023841,2]
[424415548,1780858252000,-589.30236417,0.00024,2]
[424415550,1780858252000,-837.9507705,0.00024,2]
[424415560,1780858252000,-1524.05141722,0.00024,2]
[424415549,1780858252000,-938.84077253,0.00024,2]
[424415551,1780858252000,-2320.0,0.00024,2]
[424415557,1780858252000,-985.0,0.00024,2]
[424415553,1780858252000,-650.0,0.00024,2]
[424415552,1780858252000,-717.24466172,0.00024,2]
[424415555,1780858252000,-1275.0,0.00024,2]
[424415559,1780858252000,-969.89084215,0.00024,2]
[424415556,1780858252000,-963.38328777,0.00024,2]
[424415558,1780858252000,-2914.44,0.00024,2]
[424415561,1780858252000,-493.8172967,0.00024,2]
[424415510,1780858252000,-178.8504364,0.00023758,2]
[424415545,1780858252000,-3600.0,0.00024,2]
[424415533,1780858252000,-176.12609513,0.00023842,2]
[424415554,1780858252000,-697.0,0.00024,2]
[424415529,1780858252000,-531.81561148,0.00023797,7]
[424415528,1780858252000,-500.0,0.00023794,2]
[424415500,1780858252000,-151.0,0.00023671,2]
[424415499,1780858252000,-151.0,0.00023671,2]
[424415497,1780858252000,-151.0,0.00023671,2]
[424415504,1780858252000,-151.0,0.00023671,2]
[424415507,1780858252000,-531.81561148,0.00023729,7]
[424415503,1780858252000,-151.0,0.00023671,2]
[424415505,1780858252000,-151.0,0.00023671,2]
[424415502,1780858252000,-151.0,0.00023671,2]
[424415506,1780858252000,-151.0,0.00023671,2]
[424415511,1780858252000,-1000.0,0.00023763,2]
[424415512,1780858252000,-1000.0,0.00023763,2]
[424415517,1780858252000,-200.0,0.00023794,2]
[424415516,1780858252000,-500.0,0.00023794,2]
[424415501,1780858252000,-151.0,0.00023671,2]
[424415514,1780858252000,-1000.0,0.00023763,2]
[424415513,1780858252000,-1000.0,0.00023763,2]
[424415526,1780858252000,-151.0,0.00023794,2]
[424415524,1780858252000,-270.0455652,0.00023794,2]
[424415527,1780858252000,-1842.0326633,0.00023794,2]
[424415536,1780858252000,-531.81561148,0.00023865,7]
[424415525,1780858252000,-151.0,0.00023794,2]
[424415519,1780858252000,-225.18697532,0.00023794,2]
[424415535,1780858252000,-152.12508311,0.00023842,2]
[424415515,1780858252000,-378.0,0.00023763,2]
[424415521,1780858252000,-163.47518123,0.00023794,2]
[424415520,1780858252000,-2682.57183977,0.00023794,2]
[424415523,1780858252000,-200.0,0.00023794,2]
[424415518,1780858252000,-270.0455652,0.00023794,2]
[424415522,1780858252000,-151.0,0.00023794,2]
[424415592,1780858253000,-280.03725111,0.00024342,2]
[424415594,1780858253000,-2781.82699784,0.00024342,2]
[424415595,1780858253000,-151.0,0.00024342,2]
[424415597,1780858253000,-321.31376078,0.00024342,2]
[424415590,1780858253000,-500.0,0.00024342,2]
[424415589,1780858253000,-531.81561148,0.0002434,14]
[424415593,1780858253000,-233.5188934,0.00024342,2]
[424415587,1780858253000,-961.97,0.000243,14]
[424415588,1780858253000,-1175.4,0.00024324,2]
[424415591,1780858253000,-200.0,0.00024342,2]
[424415606,1780858253000,-600.0,0.00024452,7]
[424415599,1780858253000,-151.0,0.00024342,2]
[424415598,1780858253000,-151.0,0.00024342,2]
[424415600,1780858253000,-500.0,0.00024342,2]
[424415601,1780858253000,-1910.18787185,0.00024342,2]
[424415602,1780858253000,-531.81561148,0.00024408,14]
[424415605,1780858253000,-176.12609513,0.00024415,7]
[424415607,1780858253000,-1200.0,0.00024452,7]
[424415608,1780858253000,-500.0,0.00024453,14]
[424415586,1780858253000,-152.0,0.00024295,11]
[424415603,1780858253000,-500.0,0.00024413,2]
[424415596,1780858253000,-280.03725111,0.00024342,2]
[424415580,1780858253000,-176.0,0.00024164,7]
[424415567,1780858253000,-168.3888056,0.00024065,2]
[424415582,1780858253000,-200.0,0.00024178,2]
[424415604,1780858253000,-186.01897328,0.00024415,7]
[424415563,1780858253000,-531.81561148,0.00024,7]
[424415565,1780858253000,-406.0,0.0002402,2]
[424415564,1780858253000,-500.0,0.0002402,2]
[424415566,1780858253000,-890.0,0.0002404,2]
[424415572,1780858253000,-297.69929237,0.00024109,2]
[424415569,1780858253000,-187.70426596,0.00024065,2]
[424415562,1780858253000,-2000.0,0.00024,7]
[424415571,1780858253000,-170.97,0.00024102,10]
[424415570,1780858253000,-531.81561148,0.00024068,7]
[424415568,1780858253000,-233.5188934,0.00024065,2]
[424415583,1780858253000,-531.81561148,0.00024204,14]
[424415584,1780858253000,-3764.78862944,0.0002421,2]
[424415574,1780858253000,-269.12,0.0002411,2]
[424415585,1780858253000,-531.81561148,0.00024272,14]
[424415573,1780858253000,-233.33923416,0.00024109,2]
[424415575,1780858253000,-278.87206291,0.0002411,2]
[424415579,1780858253000,-531.81561148,0.00024136,14]
[424415578,1780858253000,-176.12609513,0.00024128,7]
[424415576,1780858253000,-250.0,0.0002411,2]
[424415577,1780858253000,-186.01897328,0.00024128,7]
[424415581,1780858253000,-232.16903944,0.00024174,2]
[424415609,1780858253000,-930.92336407,0.00024466,2]
[424415615,1780858253000,-185.06,0.00024488,2]
[424415611,1780858253000,-573.09,0.00024487,2]
[424415648,1780858253000,-166.244575,0.00024658,2]
[424415637,1780858253000,-151.0,0.00024658,2]
[424415640,1780858253000,-151.0,0.00024658,2]
[424415641,1780858253000,-151.0,0.00024658,2]
[424415644,1780858253000,-819.476695,0.00024658,2]
[424415642,1780858253000,-151.0,0.00024658,2]
[424415643,1780858253000,-209.236298,0.00024658,2]
[424415639,1780858253000,-151.0,0.00024658,2]
[424415646,1780858253000,-819.476695,0.00024658,2]
[424415645,1780858253000,-819.476695,0.00024658,2]
[424415638,1780858253000,-151.0,0.00024658,2]
[424415650,1780858253000,-819.476695,0.00024658,2]
[424415649,1780858253000,-166.244575,0.00024658,2]
[424415655,1780858253000,-819.476695,0.00024658,2]
[424415654,1780858253000,-819.476695,0.00024658,2]
[424415653,1780858253000,-166.244575,0.00024658,2]
[424415656,1780858253000,-166.244575,0.00024658,2]
[424415652,1780858253000,-819.476695,0.00024658,2]
[424415658,1780858253000,-819.476695,0.00024658,2]
[424415657,1780858253000,-166.244575,0.00024658,2]
[424415659,1780858253000,-166.244575,0.00024658,2]
[424415612,1780858253000,-572.93,0.00024487,2]
[424415651,1780858253000,-166.244575,0.00024658,2]
[424415636,1780858253000,-151.0,0.00024658,2]
[424415647,1780858253000,-819.476695,0.00024658,2]
[424415632,1780858253000,-6012.88,0.00024658,2]
[424415610,1780858253000,-531.81561148,0.00024476,14]
[424415635,1780858253000,-1000.0,0.00024658,2]
[424415613,1780858253000,-573.09,0.00024487,2]
[424415616,1780858253000,-151.0,0.00024493,2]
[424415614,1780858253000,-573.09,0.00024487,2]
[424415618,1780858253000,-1752.63,0.000245,7]
[424415621,1780858253000,-382.0,0.00024538,2]
[424415619,1780858253000,-1358.0,0.00024538,2]
[424415620,1780858253000,-3554.0,0.00024538,2]
[424415623,1780858253000,-1227.0,0.00024538,2]
[424415622,1780858253000,-1274.0,0.00024538,2]
[424415617,1780858253000,-151.0,0.00024493,2]
[424415624,1780858253000,-6073.0,0.00024538,2]
[424415625,1780858253000,-419.0,0.00024538,2]
[424415626,1780858253000,-531.81561148,0.00024544,14]
[424415628,1780858253000,-172.27678678,0.0002465,2]
[424415627,1780858253000,-531.81561148,0.00024612,14]
[424415630,1780858253000,-167.65390087,0.00024658,2]
[424415631,1780858253000,-6012.88,0.00024658,2]
[424415634,1780858253000,-217.75,0.00024658,2]
[424415629,1780858253000,-152.0,0.00024651,12]
[424415633,1780858253000,-220.09,0.00024658,8]
[424415700,1780858254000,-290.39862941,0.0002489,2]
[424415697,1780858254000,-242.15909246,0.0002489,2]
[424415698,1780858254000,-2884.75459676,0.0002489,2]
[424415696,1780858254000,-290.39862938,0.0002489,2]
[424415695,1780858254000,-200.0,0.0002489,2]
[424415688,1780858254000,-206.0,0.00024815,2]
[424415690,1780858254000,-890.0,0.00024862,2]
[424415692,1780858254000,-531.81561148,0.00024883,30]
[424415693,1780858254000,-500.0,0.0002489,2]
[424415699,1780858254000,-151.0,0.0002489,2]
[424415694,1780858254000,-500.0,0.0002489,2]
[424415701,1780858254000,-151.0,0.0002489,2]
[424415715,1780858254000,-540.0,0.00025,2]
[424415703,1780858254000,-1980.8648231,0.0002489,2]
[424415704,1780858254000,-500.0,0.0002489,2]
[424415706,1780858254000,-200.0,0.00024949,2]
[424415716,1780858254000,-620.92994377,0.00025,2]
[424415717,1780858254000,-3093.9118355,0.00025,2]
[424415707,1780858254000,-531.81561148,0.00024951,30]
[424415705,1780858254000,-156357.0,0.000249,2]
[424415708,1780858254000,-186.01897328,0.00024989,30]
[424415709,1780858254000,-176.12609513,0.00024989,30]
[424415711,1780858254000,-1132.45144461,0.00025,2]
[424415712,1780858254000,-210.94243995,0.00025,2]
[424415691,1780858254000,-8813.77996503,0.00024871,2]
[424415702,1780858254000,-151.0,0.0002489,2]
[424415689,1780858254000,-531.81561148,0.00024815,30]
[424415660,1780858254000,-819.476695,0.00024658,2]
[424415686,1780858254000,-557.29107413,0.00024748,3]
[424415710,1780858254000,-40707.29858851,0.00025,7]
[424415671,1780858254000,-819.476695,0.00024658,2]
[424415661,1780858254000,-166.244575,0.00024658,2]
[424415662,1780858254000,-819.476695,0.00024658,2]
[424415665,1780858254000,-166.244575,0.00024658,2]
[424415666,1780858254000,-819.476695,0.00024658,2]
[424415667,1780858254000,-166.244575,0.00024658,2]
[424415669,1780858254000,-166.244575,0.00024658,2]
[424415670,1780858254000,-819.476695,0.00024658,2]
[424415664,1780858254000,-166.244575,0.00024658,2]
[424415663,1780858254000,-819.476695,0.00024658,2]
[424415668,1780858254000,-819.476695,0.00024658,2]
[424415687,1780858254000,-3113.43,0.0002476,7]
[424415672,1780858254000,-166.244575,0.00024658,2]
[424415677,1780858254000,-500.0,0.00024658,2]
[424415674,1780858254000,-166.244575,0.00024658,2]
[424415676,1780858254000,-500.0,0.00024658,2]
[424415675,1780858254000,-166.244575,0.00024658,2]
[424415678,1780858254000,-512.72709505,0.00024658,2]
[424415679,1780858254000,-250.0,0.00024658,2]
[424415682,1780858254000,-176.12609513,0.00024702,14]
[424415681,1780858254000,-186.01897328,0.00024702,14]